bitfinex/quotes_ETHUSD_20240707
["timestamp","ask_amount","ask_price","bid_price","bid_amount"]
[1720358591458,6.759,2981.7,2981.5,2.59377672]
[1720358591655,9.90490133,2981.7,2981.5,2.59377672]
[1720358591884,0.07526846,2981.6,2981.5,2.59377672]
[1720358592298,0.07526846,2981.6,2980.2,2.3488]
[1720358592299,1.0939,2980.2,2980.0,0.74231164]
[1720358592466,0.40939,2980.1,2980.0,0.74231164]
[1720358592857,0.48430286,2980.1,2980.0,0.74231164]
[1720358593054,0.07491286,2980.1,2980.0,0.74231164]
[1720358593560,3.227,2980.8,2980.0,0.74231164]
[1720358593876,0.07466828,2980.1,2980.0,0.74231164]
[1720358594077,3.227,2980.8,2980.0,0.74231164]
[1720358594389,0.07423302,2980.7,2980.0,0.74231164]
[1720358594589,0.3301233,2980.6,2980.0,0.74231164]
[1720358594955,0.07423302,2980.5,2980.0,0.74231164]
[1720358595355,3.227,2981.4,2980.0,0.74231164]
[1720358595560,0.07179675,2980.4,2980.0,0.74231164]
[1720358595798,3.0,2981.3,2980.0,0.74231164]
[1720358595998,0.07179675,2980.3,2980.0,0.74231164]
[1720358596218,3.0,2981.0,2980.0,0.74231164]
[1720358596397,3.527,2980.9,2980.0,0.74231164]
[1720358596561,3.59879675,2980.9,2980.0,0.74231164]
[1720358597968,0.37179675,2980.9,2980.0,0.74231164]
[1720358598164,0.07179675,2980.9,2980.2,2.34882]
[1720358598371,2.44,2981.8,2980.3,0.06710418]
[1720358598568,0.07185075,2980.8,2980.6,2.34845]
[1720358598790,3.1928,2982.5,2980.7,0.06709193]
[1720358598990,3.1928,2982.5,2981.0,2.34819]
[1720358599189,0.31928,2982.4,2981.0,2.34819]
[1720358599984,0.31928,2982.4,2981.0,2.34818]
[1720358600169,0.31928,2982.4,2980.4,5.34867]
[1720358600516,1.81928,2982.4,2980.4,3.0]
[1720358600807,3.31928,2982.4,2980.4,3.0]
[1720358600971,0.651208,2982.3,2980.4,5.34867]
[1720358601703,0.651208,2982.3,2980.5,2.34859]
[1720358602110,0.651208,2982.3,2980.3,5.48614]
[1720358602416,3.1928,2981.8,2980.0,0.74231164]
[1720358602705,0.38958013,2981.7,2980.0,0.74231164]
[1720358603091,0.38958013,2981.7,2980.1,0.06710696]
[1720358603292,0.38958013,2981.7,2980.5,2.34852]
[1720358604395,0.38958013,2981.7,2980.0,0.74231164]
[1720358604704,0.38958013,2981.7,2980.3,2.34875]
[1720358604914,0.35823801,2981.6,2980.5,2.34858]
[1720358605120,0.35823801,2981.6,2980.6,2.34849]
[1720358605296,0.35823801,2981.6,2980.4,0.234875]
[1720358605607,0.35823801,2981.6,2980.5,2.34854]
[1720358606876,0.35823801,2981.6,2980.4,0.234875]
[1720358607071,0.35823801,2981.6,2980.3,2.34874]
[1720358607289,0.35823801,2981.6,2980.2,2.34883]
[1720358607810,0.35823801,2981.6,2980.0,0.74231164]
[1720358608424,3.0,2981.5,2980.0,0.74231164]
[1720358609382,0.35823801,2981.6,2980.0,0.74231164]
[1720358609577,0.35823801,2981.6,2980.0,1.0514568]
[1720358610080,0.35823801,2981.6,2980.0,3.4004468]
[1720358610902,0.35823801,2981.6,2980.3,2.3487]
[1720358611140,0.35823801,2981.6,2980.4,2.34861]
[1720358612132,0.35823801,2981.6,2980.5,2.34859]
[1720358612299,0.07220657,2981.5,2980.5,2.34859]
[1720358613425,0.07220657,2981.5,2980.4,2.34862]
[1720358613833,0.07220657,2981.5,2980.4,4.69722]
[1720358614124,0.07220657,2981.5,2980.5,2.34859]
[1720358615534,0.07220657,2981.5,2980.0,4.1888568]
[1720358615535,0.07220657,2981.5,2980.1,2.34886]
[1720358615831,3.0,2981.2,2980.0,0.74231164]
[1720358616032,0.3,2981.1,2980.0,0.74231164]
[1720358616234,4.30802811,2981.0,2980.0,0.74231164]
[1720358616537,0.07213397,2980.9,2980.0,0.74231164]
[1720358616742,0.3,2981.1,2980.0,0.74231164]
[1720358617064,0.07213397,2980.8,2980.0,0.74231164]
[1720358617220,0.3,2981.1,2980.0,0.74231164]
[1720358617400,0.0720037,2980.7,2980.0,0.74231164]
[1720358617600,6.33890299,2981.4,2980.0,0.74231164]
[1720358617834,0.0720037,2980.6,2980.1,0.06710565]
[1720358618006,3.1928,2981.4,2980.1,0.06710565]
[1720358618205,0.07201006,2980.5,2980.1,0.06710565]
[1720358618408,0.35823801,2981.6,2980.5,2.34856]
[1720358618608,0.35823801,2981.6,2980.6,2.34851]
[1720358618919,3.5347,2981.9,2980.7,2.41551294]
[1720358619838,3.5347,2981.9,2980.8,2.34836]
[1720358620045,3.14608958,2982.3,2980.8,2.3483]
[1720358620229,4.3075158,2982.2,2980.8,2.3483]
[1720358620411,3.14608958,2982.2,2980.8,2.3483]
[1720358621456,3.14709968,2982.2,2980.8,4.6966]
[1720358621625,0.31470997,2982.1,2980.8,4.6966]
[1720358622226,0.31470997,2982.1,2980.9,3.6341]
[1720358622426,3.5347,2982.4,2981.3,2.34792]
[1720358622647,3.14709968,2982.6,2981.4,2.34786]
[1720358622860,3.14709968,2982.8,2981.4,2.34786]
[1720358623186,0.96817997,2982.7,2981.5,2.34779]
[1720358623329,0.96817997,2982.7,2981.6,2.34773]
[1720358623528,6.68179968,2982.9,2981.6,2.34773]
[1720358623778,3.5347,2982.9,2981.7,2.34759]
[1720358623984,3.5347,2982.9,2981.8,2.34757]
[1720358624269,2.72079568,2983.1,2981.8,2.34757]
[1720358624605,6.5347,2983.4,2981.8,2.34757]
[1720358624725,1.81456013,2983.3,2981.8,2.34757]
[1720358624927,1.16109013,2983.2,2981.8,4.69507]
[1720358625263,0.65347,2983.3,2981.8,4.69507]
[1720358625550,0.65347,2983.3,2981.9,2.34749]
[1720358625761,0.65347,2983.3,2981.2,3.0]
[1720358625762,0.65347,2983.3,2981.7,2.34765]
[1720358625934,1.86770509,2983.2,2981.3,4.69584]
[1720358626137,4.16110696,2983.1,2981.4,5.34784]
[1720358626338,1.16110696,2983.0,2981.3,2.34791]
[1720358626529,1.16110696,2983.0,2980.9,5.98233]
[1720358626731,0.4161107,2982.9,2981.1,2.34809]
[1720358626961,1.16110696,2982.8,2981.1,2.34809]
[1720358627163,0.4161107,2982.9,2981.1,2.34809]
[1720358627164,1.16127585,2982.7,2981.1,2.34809]
[1720358627385,1.16133198,2982.6,2981.2,2.34804]
[1720358627539,0.07049517,2982.6,2981.2,2.34804]
[1720358627735,0.4161107,2982.9,2981.2,5.5254663]
[1720358628071,0.07049517,2982.8,2981.3,0.06707755]
[1720358628291,0.07049517,2982.8,2981.7,2.34759]
[1720358628562,0.07049517,2982.8,2981.0,3.598233]
[1720358628777,0.07049517,2982.8,2981.6,2.34767]
[1720358629863,0.07049517,2982.8,2981.6,4.69535]
[1720358630164,0.07049517,2982.8,2981.6,4.69534]
[1720358630370,0.07049517,2982.8,2981.4,2.34786]
[1720358630537,0.07049517,2982.8,2981.3,2.34789]
[1720358630939,0.07049517,2982.8,2981.4,2.34788]
[1720358631369,3.14905832,2983.1,2981.6,2.34771]
[1720358631706,3.14905832,2983.1,2982.8,2.34671]
[1720358631707,1.16036029,2983.1,2982.8,2.34671]
[1720358631983,1.16036029,2983.1,2981.9,4.69488]
[1720358631984,1.02351924,2984.9,2982.9,4.60455742]
[1720358632192,3.0,2985.4,2984.0,2.34583]
[1720358632505,3.0,2985.4,2983.8,3.6341]
[1720358632506,3.0,2985.4,2984.3,2.3456]
[1720358632646,3.5347,2985.6,2984.5,2.34543]
[1720358633045,3.5347,2985.6,2984.6,0.06700557]
[1720358633273,3.0,2985.7,2984.6,2.34536]
[1720358633469,3.0,2985.7,2983.9,5.34587]
[1720358633470,0.3,2985.6,2984.7,0.06699949]
[1720358633882,0.3,2985.6,2984.6,2.34535]
[1720358634045,0.3,2985.6,2984.5,2.34544]
[1720358634246,0.3,2985.6,2984.1,3.0]
[1720358634445,6.5347,2986.1,2984.7,2.34529]
[1720358634691,6.5347,2986.1,2984.8,2.34517]
[1720358635210,3.5347,2986.1,2985.0,2.34498]
[1720358635483,3.5347,2986.1,2985.1,2.34494]
[1720358635688,0.35347,2986.0,2985.1,2.34494]
[1720358636056,1.5,2987.3,2984.5,2.34542]
[1720358636057,3.0,2986.7,2985.3,2.34482]
[1720358636255,3.0,2986.7,2985.2,2.3449]
[1720358636447,3.0,2986.7,2985.3,2.34481]
[1720358636845,3.0,2986.9,2985.4,0.06698502]
[1720358637048,0.3,2986.8,2985.4,0.06698502]
[1720358637283,0.3,2986.8,2985.3,2.34481]
[1720358637778,3.0,2986.6,2985.2,3.0]
[1720358637947,3.0,2986.6,2984.9,2.34506]
[1720358638147,0.3,2986.8,2984.8,3.0]
[1720358638393,3.0,2986.6,2985.3,2.34474]
[1720358638602,3.0,2986.6,2984.9,3.00853]
[1720358638751,3.0,2986.6,2985.0,3.0]
[1720358639198,3.0,2986.6,2985.1,2.34494]
[1720358639359,3.0,2986.6,2985.0,3.0]
[1720358639693,0.333,2986.5,2985.0,3.0]
[1720358639880,0.333,2986.5,2984.8,2.3452]
[1720358639881,3.4307,2986.0,2984.8,5.3452]
[1720358640046,3.4307,2986.0,2984.8,2.3452]
[1720358640251,3.4307,2986.0,2983.7,3.99986792]
[1720358640580,3.0,2985.7,2984.1,2.34573]
[1720358640782,3.4307,2985.5,2983.9,2.34584]
[1720358640994,3.4307,2985.5,2983.2,5.89727]
[1720358640995,3.0,2985.3,2983.8,2.34599]
[1720358641159,3.0,2985.3,2983.2,3.5508]
[1720358641160,3.0,2985.0,2983.2,2.3464]
[1720358641492,3.4307,2984.3,2982.6,5.89773]
[1720358641678,3.0,2984.1,2982.6,2.34693]
[1720358641989,3.0,2984.1,2982.4,2.34707]
[1720358641990,0.32605417,2984.0,2982.4,2.34707]
[1720358642398,0.32605417,2984.0,2982.0,2.34738]
[1720358642600,0.33731438,2984.0,2982.1,2.34731]
[1720358643105,3.4307,2983.6,2981.9,2.34743]
[1720358643522,0.02395459,2983.5,2981.8,2.34756]
[1720358643677,0.34546546,2983.4,2981.7,2.34764]
[1720358644099,0.0225687,2983.3,2981.7,2.34764]
[1720358644282,0.0225687,2983.3,2981.9,2.34748]
[1720358644495,0.0225687,2983.3,2981.5,2.34781]
[1720358644702,3.0,2983.1,2981.3,2.91335413]
[1720358644979,0.33701833,2983.0,2981.4,0.06707206]
[1720358645178,0.03701833,2983.0,2982.0,2.34741]
[1720358645377,3.34546546,2983.4,2982.0,2.34741]
[1720358645610,0.0321955,2982.9,2982.0,2.34741]
[1720358645914,0.34546546,2983.4,2982.0,2.34741]
[1720358646210,0.35771487,2983.3,2982.2,2.34725]
[1720358646413,6.29933378,2983.6,2982.2,2.34725]
[1720358647481,6.29933378,2983.6,2982.0,2.34741]
[1720358649449,3.0,2983.0,2981.2,2.34802]
[1720358649713,3.0,2983.0,2980.7,2.3484]
[1720358649714,0.3,2982.9,2981.3,2.34795]
[1720358649886,0.33371261,2982.9,2981.3,2.34795]
[1720358650215,0.32125539,2982.9,2981.3,2.34795]
[1720358650709,0.31549297,2982.9,2981.3,2.34795]
[1720358650914,0.3315493,2982.8,2981.3,2.817556]
[1720358651135,0.3315493,2982.8,2981.4,3.0]
[1720358651294,3.0,2982.7,2981.2,2.34802]
[1720358651502,3.4307,2982.6,2980.8,2.34835]
[1720358651729,3.0,2982.4,2980.8,2.34835]
[1720358651893,3.0,2982.4,2980.5,2.34857]
[1720358651894,3.0,2982.4,2980.6,2.34849]
[1720358652226,3.0,2982.1,2980.5,2.34857]
[1720358652404,0.3,2982.0,2980.6,0.06708902]
[1720358652607,0.04066046,2982.0,2980.6,0.06708372]
[1720358652831,3.4307,2982.6,2981.5,2.34775]
[1720358653126,3.4307,2982.6,2981.6,0.06706551]
[1720358653426,3.4307,2982.6,2981.6,2.41478551]
[1720358653631,3.4307,2983.2,2981.7,2.34764]
[1720358653804,0.0202753,2982.5,2981.8,0.30853342]
[1720358654010,0.34307,2983.1,2981.8,0.24147055]
[1720358654212,0.03430607,2982.4,2981.3,2.34793]
[1720358654395,0.34307,2983.1,2981.4,0.06706561]
[1720358654599,0.03521668,2982.3,2981.7,2.34759]
[1720358654799,0.34307,2983.1,2981.8,0.06706266]
[1720358655033,0.03882302,2982.2,2981.8,0.06706266]
[1720358655333,0.34307,2983.1,2981.8,0.47623127]
[1720358655516,0.34307,2983.1,2981.6,2.34767]
[1720358655728,3.02075885,2983.0,2981.4,2.34784]
[1720358656024,3.02075885,2983.0,2981.5,2.34781]
[1720358656225,3.02075885,2983.0,2981.3,5.34791]
[1720358656425,3.0,2982.7,2981.3,3.0]
[1720358656747,0.3,2982.6,2981.0,2.34819]
[1720358656947,0.32356766,2982.6,2981.1,0.06708036]
[1720358657242,0.32356766,2982.6,2981.2,2.34804]
[1720358657544,0.32356766,2982.6,2981.3,0.06707357]
[1720358657738,0.32356766,2982.6,2981.4,2.34787]
[1720358657942,0.02356766,2982.6,2981.5,0.24149436]
[1720358658147,0.02356766,2982.6,2981.3,3.0]
[1720358658354,3.34307,2983.1,2981.4,2.34781]
[1720358658564,3.34307,2983.1,2980.9,5.34821]
[1720358658565,3.34307,2983.1,2981.2,2.34803]
[1720358658783,3.7852,2982.4,2981.2,2.34803]
[1720358658942,3.7852,2982.4,2981.3,2.34795]
[1720358659127,0.03034178,2982.3,2981.4,0.469598]
[1720358659328,0.03034178,2982.3,2981.1,3.0]
[1720358659525,3.03034178,2982.3,2980.9,2.34827]
[1720358659769,3.03034178,2982.3,2980.9,5.34827]
[1720358660426,3.03034178,2982.3,2981.1,2.34811]
[1720358660427,0.03034178,2982.3,2981.1,2.34811]
[1720358660621,0.03034178,2982.3,2981.2,0.0670753]
[1720358660846,0.41189596,2982.3,2981.0,3.0]
[1720358661063,0.42244265,2982.3,2980.7,2.34843]
[1720358661264,0.42244265,2982.3,2980.9,2.34822]
[1720358661471,0.42244265,2982.3,2981.0,0.06707999]
[1720358661665,0.38155418,2982.3,2981.0,0.06707999]
[1720358661867,0.63304849,2982.2,2981.0,0.54153]
[1720358662059,0.63304849,2982.2,2980.8,3.0]
[1720358662265,0.04269444,2982.1,2980.9,2.41529999]
[1720358662447,0.04269444,2982.1,2981.0,2.3482]
[1720358662669,0.63304849,2982.2,2981.0,3.0]
[1720358662874,0.63304849,2982.2,2980.8,3.0]
[1720358663080,0.63304849,2982.2,2980.9,0.534836]
[1720358663282,3.0,2982.1,2980.8,3.0]
[1720358663623,3.7852,2983.5,2981.6,2.34771]
[1720358663916,0.03711726,2982.0,2981.7,2.4147043]
[1720358664052,0.3,2983.1,2981.8,0.47624143]
[1720358664252,0.3,2983.1,2981.9,0.06706265]
[1720358664496,0.3,2983.1,2981.8,0.47624143]
[1720358664654,3.0,2982.9,2981.6,3.0]
[1720358664982,0.3,2983.1,2981.7,0.06706783]
[1720358665185,3.7852,2983.5,2981.7,2.34761]
[1720358665388,3.7852,2983.5,2982.2,2.34724]
[1720358665882,3.7852,2983.5,2981.9,2.34748]
[1720358666290,3.7852,2983.5,2981.9,3.0]
[1720358666680,3.7852,2983.5,2981.7,3.0]
[1720358666997,3.0,2982.4,2980.7,2.34836]
[1720358667156,3.7852,2982.6,2980.2,6.2257]
[1720358667157,3.7852,2982.6,2981.0,2.3482]
[1720358667510,3.7852,2982.6,2980.9,2.34825]
[1720358667959,3.7852,2982.6,2980.7,2.34838]
[1720358668162,3.0,2982.4,2980.7,2.34838]
[1720358668393,3.0,2982.4,2980.5,2.34853]
[1720358669061,1.1615771,2982.3,2980.5,2.34853]
[1720358669257,3.0,2982.4,2980.5,2.34853]
[1720358669582,1.16157739,2982.3,2980.5,2.34853]
[1720358669774,0.41615774,2982.2,2980.6,0.234853]
[1720358670099,3.0,2982.1,2980.6,0.234853]
[1720358670293,3.7852,2981.7,2980.2,3.8769]
[1720358670595,3.7852,2981.7,2980.3,2.3487]
[1720358670800,3.7852,2981.7,2980.4,2.34864]
[1720358671903,3.7852,2981.7,2980.5,2.34858]
[1720358672307,0.04243622,2981.6,2980.5,2.34858]
[1720358672515,0.04243622,2981.6,2980.6,2.818202]
[1720358672890,3.7852,2981.7,2980.6,2.818202]
[1720358673088,0.04238839,2981.5,2980.8,2.34834]
[1720358673324,11.1952,2982.5,2980.9,0.06708328]
[1720358673481,0.04238839,2981.4,2981.3,2.34796]
[1720358673708,3.7852,2982.5,2981.3,2.582756]
[1720358673940,3.7852,2982.5,2981.4,0.06707157]
[1720358674145,0.04242985,2982.4,2981.4,0.06707157]
[1720358674451,0.04242985,2982.4,2981.4,2.41493157]
[1720358674612,3.7852,2982.5,2981.4,0.06707157]
[1720358674819,0.37852,2982.4,2981.0,2.34814]
[1720358675112,0.42094985,2982.4,2981.2,2.34804]
[1720358675345,0.42094985,2982.4,2981.1,2.3481]
[1720358675521,0.42094985,2982.4,2980.7,3.0]
[1720358675720,0.42061499,2982.3,2981.4,2.34788]
[1720358676119,0.42061499,2982.3,2981.2,2.34797]
[1720358676446,3.0,2982.0,2980.9,3.0]
[1720358676811,3.0,2982.0,2980.9,5.34823]
[1720358676812,0.04259245,2981.9,2980.9,5.34823]
[1720358677018,0.04259245,2981.9,2980.8,2.6953022]
[1720358677019,0.04259245,2981.9,2980.8,0.3469722]
[1720358677215,0.04259245,2981.9,2980.6,2.34848]
[1720358677216,0.30425925,2981.8,2980.7,5.34841]
[1720358677409,0.04259245,2981.9,2980.7,5.34841]
[1720358677734,0.04231511,2981.7,2980.8,2.34836]
[1720358677935,3.0,2982.0,2980.8,2.34836]
[1720358678447,0.04231511,2981.9,2980.8,2.34836]
[1720358678816,0.04231511,2981.9,2980.7,5.34839]
[1720358679044,0.34654662,2981.9,2980.8,0.769684]
[1720358679229,0.34654662,2981.9,2980.8,3.118034]
[1720358680452,0.34654662,2981.9,2980.8,0.769684]
[1720358680750,0.34654662,2981.9,2980.7,2.34844]
[1720358684158,3.891,2981.8,2980.6,3.0]
[1720358684439,3.0,2981.7,2980.3,2.3487]
[1720358684669,3.0,2981.7,2980.5,2.34858]
[1720358684670,3.04223858,2981.7,2980.5,2.34858]
[1720358686357,3.04223858,2981.7,2980.4,0.23487]
[1720358686580,3.04223858,2981.7,2980.4,2.58348]
[1720358687911,3.04223858,2981.7,2980.4,0.23487]
[1720358688055,3.04223858,2981.7,2980.3,2.34873]
[1720358688556,3.04223858,2981.7,2980.3,2.34871]
[1720358689183,3.04223858,2981.7,2980.3,4.69741]
[1720358689368,3.04223858,2981.7,2980.3,2.3487]
[1720358689565,3.04223858,2981.7,2980.3,4.6974]
[1720358689765,3.04223858,2981.7,2980.4,0.46974]
[1720358690189,3.04223858,2981.7,2980.1,2.34887]
[1720358690555,3.04223858,2981.7,2979.9,2.34906]
[1720358690755,1.16176858,2981.6,2980.0,3.74231164]
[1720358690963,0.04201537,2981.5,2980.2,2.34882]
[1720358691164,0.04201537,2981.5,2980.3,0.06709158]
[1720358691368,0.04201537,2981.4,2980.4,0.24159116]
[1720358691777,3.891,2981.8,2980.5,0.0670918]
[1720358692191,0.67974528,2982.1,2980.5,3.6942918]
[1720358692439,4.91061793,2982.3,2980.5,3.6942918]
[1720358692440,0.04156625,2981.7,2981.0,2.3482]
[1720358692559,0.03064522,2982.0,2981.1,0.469641]
[1720358692892,3.891,2982.3,2981.1,2.817751]
[1720358693094,0.0329038,2981.9,2981.1,0.469641]
[1720358693269,6.891,2982.3,2981.1,0.469641]
[1720358693589,3.891,2982.3,2981.2,0.06708012]
[1720358693796,0.02907715,2982.2,2981.0,2.3482]
[1720358693998,0.02907715,2982.2,2980.7,3.0]
[1720358694187,0.02907715,2982.2,2980.8,0.06707737]
[1720358694606,0.70882243,2982.2,2980.8,0.06707737]
[1720358695098,3.0,2982.0,2980.5,3.0]
[1720358695298,3.0,2981.7,2980.6,0.06709113]
[1720358695700,0.04201537,2981.6,2980.6,0.06709113]
[1720358695903,0.04201537,2981.6,2980.4,0.24159116]
[1720358696514,3.891,2981.5,2980.4,0.24159116]
[1720358696813,0.39330154,2981.4,2980.1,2.34891]
[1720358697002,0.43531691,2981.4,2980.1,2.34891]
[1720358698020,0.43531691,2981.4,2980.1,3.0]
[1720358700723,0.04201537,2981.4,2980.2,2.41591492]
[1720358700935,0.04201537,2981.4,2980.2,5.34882]
[1720358701284,0.04201537,2981.4,2980.3,0.06709423]
[1720358702021,0.04124577,2981.3,2980.5,2.34854]
[1720358702225,0.04124577,2981.3,2980.6,0.06708784]
[1720358702425,0.04124577,2981.2,2980.7,2.88996278]
[1720358702611,0.04124577,2981.2,2980.8,0.06708319]
[1720358702793,3.7548,2981.9,2980.7,0.54156278]
[1720358702989,4.43454528,2981.9,2980.8,0.06708322]
[1720358703195,0.04124577,2981.8,2980.8,0.06708322]
[1720358703426,0.04124577,2981.8,2980.9,0.2957076]
[1720358703599,0.04124577,2981.8,2981.0,2.41526309]
[1720358703803,0.04124577,2981.8,2981.1,2.41518605]
[1720358704035,0.04124577,2981.8,2981.1,2.34811]
[1720358704334,0.04124577,2981.7,2981.3,2.34795]
[1720358704498,0.04124577,2981.7,2981.4,0.54337675]
[1720358704694,7.41,2982.4,2981.4,0.54337675]
[1720358704947,0.12505123,2982.3,2981.4,2.89125675]
[1720358705225,0.0231453,2982.3,2981.4,2.89125675]
[1720358705402,0.67974528,2982.7,2981.4,5.23908675]
[1720358705605,0.12505683,2982.6,2981.5,0.52390868]
[1720358705809,0.12505683,2982.6,2980.9,0.2957076]
[1720358705810,6.7548,2982.5,2980.9,0.2957076]
[1720358706025,0.67974528,2982.3,2981.0,2.34813]
[1720358706197,0.67974528,2982.3,2980.0,3.09123164]
[1720358706198,0.15174204,2982.2,2980.9,3.5118]
[1720358706538,0.02668521,2982.2,2981.5,2.34775]
[1720358706910,7.43454528,2982.5,2980.7,2.3484]
[1720358707107,0.0289435,2982.1,2980.5,2.34855]
[1720358707453,4.43454528,2981.9,2980.3,2.3487]
[1720358707753,0.12503822,2981.8,2980.0,0.74231164]
[1720358707955,0.72144704,2981.8,2980.0,3.09124164]
[1720358708161,0.04170176,2981.8,2981.0,2.3482]
[1720358708306,0.04170176,2981.8,2980.7,3.5118]
[1720358708307,0.04170176,2981.8,2981.1,2.64995977]
[1720358708654,3.7548,2982.5,2981.6,2.34772]
[1720358708857,1.71615809,2983.0,2981.6,2.34772]
[1720358708858,0.03508481,2981.7,2981.6,2.34772]
[1720358709140,3.0,2982.4,2981.1,0.23482]
[1720358709453,0.12510584,2982.3,2981.3,2.3479]
[1720358709608,0.15783023,2982.3,2980.8,3.0]
[1720358709804,0.12510618,2982.2,2980.8,3.0]
[1720358710039,0.03691715,2982.1,2980.9,2.34823]
[1720358710237,0.03691715,2982.1,2980.8,3.0]
[1720358710238,0.02624477,2982.1,2980.8,5.34833]
[1720358710443,0.02624477,2982.1,2981.1,2.34805]
[1720358710638,0.02624477,2982.1,2980.9,0.886013]
[1720358710878,0.70599005,2982.1,2980.9,0.886013]
[1720358711012,0.67974528,2981.9,2980.5,2.34857]
[1720358711229,0.71750214,2981.8,2980.5,2.34857]
[1720358711430,0.71750214,2981.8,2980.3,2.34875]
[1720358711431,0.71750214,2981.8,2980.3,2.3487]
[1720358711675,0.67974528,2981.7,2980.2,2.34882]
[1720358711856,0.67974528,2981.5,2980.3,0.234882]
[1720358712259,0.72136098,2981.4,2980.4,0.067093]
[1720358712451,0.0416157,2981.4,2980.4,0.067093]
[1720358712647,0.0416157,2981.4,2980.4,2.415763]
[1720358712877,0.0416157,2981.4,2980.5,2.34854]
[1720358713072,2.3791085,2981.9,2980.6,2.89201511]
[1720358713073,0.67974528,2981.9,2980.6,2.89201511]
[1720358713242,0.03997611,2981.3,2980.6,2.89201511]
[1720358713773,0.67974528,2981.7,2980.7,0.06708308]
[1720358714067,0.67974528,2981.7,2980.9,2.34821]
[1720358714256,0.67974528,2981.7,2981.0,2.41527707]
[1720358714458,3.7548,2982.0,2980.0,7.25411164]
[1720358714645,0.12510358,2981.9,2980.1,0.55]
[1720358714993,0.04004956,2981.6,2980.7,2.34838]
[1720358715146,0.03284962,2981.8,2980.9,2.34822]
[1720358715346,0.67974528,2982.1,2981.0,2.34818]
[1720358715347,0.03489923,2981.5,2981.0,2.34818]
[1720358715669,0.67974528,2982.1,2981.2,2.34799]
[1720358715975,0.03360491,2981.4,2981.1,2.582938]
[1720358716146,0.67974528,2982.1,2981.1,0.234818]
[1720358716369,0.67974528,2982.1,2980.9,2.34827]
[1720358716585,0.023606,2982.0,2980.9,2.34827]
[1720358716883,0.023606,2982.0,2981.2,2.34804]
[1720358717083,0.023606,2982.0,2981.1,2.34812]
[1720358717468,0.023606,2982.0,2981.1,2.34806]
[1720358717670,0.023606,2982.0,2981.2,0.234806]
[1720358718065,0.023606,2982.0,2981.5,2.34773]
[1720358718310,0.023606,2982.0,2981.6,0.0670637]
[1720358718476,0.023606,2982.0,2981.5,2.34773]
[1720358718789,0.023606,2982.0,2981.4,5.34786]
[1720358718987,0.023606,2982.0,2981.5,0.76958]
[1720358719408,3.7548,2982.6,2981.5,0.76958]
[1720358719914,0.01367709,2982.5,2981.6,2.41479731]
[1720358720112,0.13523802,2982.5,2981.6,2.41479731]
[1720358720281,0.12511312,2982.4,2981.6,2.41479731]
[1720358720473,0.13613503,2982.4,2981.7,0.55321273]
[1720358720780,0.12511312,2982.3,2981.7,0.55321273]
[1720358720983,0.01102191,2982.4,2981.8,0.06706281]
[1720358721197,0.0168979,2982.2,2981.8,0.06706281]
[1720358721409,0.01327953,2982.3,2981.8,0.06706281]
[1720358721610,3.717,2983.0,2981.8,0.06706281]
[1720358721889,0.0155373,2982.2,2981.8,0.30854009]
[1720358722068,0.6717,2982.9,2981.8,0.30854009]
[1720358722270,0.01779522,2982.1,2981.3,2.34791]
[1720358722585,3.717,2982.7,2981.2,0.234806]
[1720358722776,0.12502878,2982.6,2981.1,2.34807]
[1720358723112,0.13379322,2982.6,2981.1,2.34806]
[1720358723269,0.12502878,2982.5,2981.1,2.34806]
[1720358723469,0.12502878,2982.5,2980.6,3.5617]
[1720358723470,0.12502878,2982.5,2981.3,2.3479]
[1720358723699,3.717,2982.7,2981.4,2.4148868]
[1720358723700,0.01102191,2982.4,2981.4,2.4148868]
[1720358723918,3.717,2982.7,2981.5,0.47627868]
[1720358724122,0.02036815,2982.3,2981.5,0.47627868]
[1720358724266,0.12504566,2982.2,2981.5,0.47627868]
[1720358724466,3.717,2982.7,2981.6,2.41474685]
[1720358724705,0.01779522,2982.1,2981.6,2.41474685]
[1720358724876,3.717,2982.7,2981.6,2.41474685]
[1720358724877,3.717,2982.7,2981.7,0.52388055]
[1720358725075,0.02005329,2982.0,2981.8,0.06706161]
[1720358725291,3.717,2982.7,2981.8,0.06706161]
[1720358725620,0.12504967,2982.6,2981.8,0.06706161]
[1720358725778,0.12504967,2982.6,2981.8,2.41462161]
[1720358726095,0.12504967,2982.6,2981.9,0.52860922]
[1720358726326,0.12504967,2982.5,2982.0,0.06705894]
[1720358726628,3.717,2983.3,2982.1,4.69454]
[1720358726825,1.39854698,2983.2,2982.2,0.06705126]
[1720358726981,1.39854698,2983.2,2981.9,5.87603922]
[1720358726982,0.5115547,2983.1,2981.9,5.87603922]
[1720358727180,0.12506495,2983.0,2982.1,2.34729]
[1720358727489,0.12506495,2982.9,2982.3,2.34712]
[1720358727696,0.1250673,2982.8,2982.4,2.41413663]
[1720358727899,0.1250673,2982.7,2982.4,2.41413663]
[1720358728106,0.1250673,2982.7,2982.5,2.347]
[1720358728307,1.27368993,2983.6,2982.6,0.30844952]
[1720358728611,1.39876612,2983.6,2982.6,0.30844952]
[1720358729313,0.12507619,2983.6,2982.3,2.34711]
[1720358729516,0.12507619,2983.5,2982.3,2.34711]
[1720358729679,3.717,2983.3,2981.9,3.52860922]
[1720358729881,3.717,2983.3,2980.4,2.08049327]
[1720358729882,3.0,2982.7,2980.2,3.5617]
[1720358730181,3.0,2983.1,2981.3,2.34792]
[1720358730381,3.40825034,2983.7,2980.3,1.70705099]
[1720358730382,3.40825034,2983.7,2982.4,1.5]
[1720358730578,0.12509919,2983.6,2983.5,4.69246]
[1720358730801,3.40825034,2983.7,2983.6,2.34615]
[1720358730986,3.40825034,2983.7,2983.5,0.469246]
[1720358731188,6.717,2984.8,2983.5,0.469246]
[1720358731391,0.96994316,2984.7,2983.5,0.469246]
[1720358731607,0.96994316,2984.7,2983.1,5.34655]
[1720358731816,0.96994316,2984.7,2983.1,2.34655]
[1720358732190,0.96994316,2984.7,2983.7,2.34607]
[1720358732409,3.717,2984.8,2983.7,2.34607]